bitfinex/quotes_ETHUSD_20250511
["timestamp","ask_amount","ask_price","bid_price","bid_amount"]
[1746948055717,0.13079356,2486.5,2485.7,0.04021866]
[1746948056035,0.8,2486.6,2485.7,0.04021866]
[1746948056233,4.82160621,2486.6,2485.6,14.487]
[1746948056431,0.13079356,2486.5,2485.7,0.2434]
[1746948056813,0.13079356,2486.5,2485.8,0.04021752]
[1746948057012,0.13079356,2486.5,2485.7,0.2434]
[1746948057210,0.13079356,2486.5,2485.8,0.04021752]
[1746948057450,0.13079356,2486.5,2485.9,0.2434]
[1746948057627,0.8,2486.6,2485.9,0.2434]
[1746948057829,0.13065354,2486.4,2486.0,4.274]
[1746948058013,0.8,2486.6,2486.0,4.274]
[1746948058211,0.8,2486.6,2486.1,0.45174]
[1746948058559,4.82157792,2486.6,2486.2,0.04021454]
[1746948058858,0.13079356,2486.5,2486.4,0.2434]
[1746948059025,0.13079356,2486.5,2486.4,4.5274]
[1746948059209,0.8,2486.6,2486.4,0.2434]
[1746948059410,0.13079356,2486.5,2486.4,0.2434]
[1746948059718,0.13079356,2486.5,2486.4,4.5274]
[1746948059914,0.7665,2489.0,2486.9,4.0048]
[1746948060142,0.1151938,2488.9,2487.2,8.0]
[1746948060311,0.7665,2489.0,2487.3,4.283]
[1746948060527,0.10470148,2488.9,2487.4,0.04018941]
[1746948060736,4.01813597,2488.8,2487.4,1.69960835]
[1746948060915,0.10442197,2488.7,2487.5,0.1126]
[1746948061251,4.12264374,2488.7,2487.6,0.04018524]
[1746948061753,0.10442197,2488.7,2487.6,0.04018524]
[1746948061965,4.01877788,2488.4,2487.7,4.283]
[1746948062137,0.511363,2488.3,2487.5,0.1126]
[1746948062325,0.55,2488.4,2487.5,0.1126]
[1746948062515,0.10948521,2488.3,2487.6,4.283]
[1746948062718,4.31433264,2489.0,2487.7,0.15289529]
[1746948062942,4.01801897,2488.8,2487.7,0.15289529]
[1746948063279,4.12263832,2488.7,2487.7,0.15289529]
[1746948063485,4.93670313,2488.7,2487.7,0.15289529]
[1746948063990,0.91849747,2488.7,2487.7,0.15289529]
[1746948064362,4.01848771,2488.5,2487.7,0.15289529]
[1746948064682,0.1040133,2488.4,2487.7,0.1127]
[1746948064886,4.02003394,2487.6,2487.3,0.1127]
[1746948065056,0.1036699,2487.5,2487.4,4.281]
[1746948065255,4.019171,2488.1,2487.4,4.281]
[1746948065453,0.90701535,2488.0,2487.4,4.281]
[1746948065853,4.0201005,2487.5,2487.4,4.281]
[1746948066054,4.12321746,2487.5,2487.4,4.281]
[1746948066272,0.10311696,2487.5,2486.8,18.756]
[1746948066445,4.0210704,2486.9,2486.8,18.756]
[1746948066643,4.0210704,2486.9,2485.7,1.90154]
[1746948066644,4.02184037,2486.5,2486.1,4.3937]
[1746948066842,0.10071905,2486.4,2486.1,4.3937]
[1746948067043,4.02204078,2486.3,2486.1,4.281]
[1746948067244,4.12105767,2486.2,2486.1,4.281]
[1746948067467,0.09885512,2486.2,2486.1,4.281]
[1746948067749,8.0,2487.3,2486.1,4.281]
[1746948067972,4.02144502,2486.7,2486.1,4.281]
[1746948068176,4.02133891,2486.8,2486.2,0.04021662]
[1746948068347,4.02218436,2486.3,2486.1,4.281]
[1746948068551,0.09879785,2486.2,2486.1,4.281]
[1746948068858,4.02220255,2486.2,2486.1,4.281]
[1746948069060,4.11972107,2486.2,2486.1,4.281]
[1746948069473,4.11972107,2486.2,2485.7,14.5857]
[1746948069785,0.09751852,2486.2,2485.8,4.32122446]
[1746948069996,0.09751852,2486.2,2485.8,4.281]
[1746948070279,4.02212019,2486.3,2485.8,4.281]
[1746948070477,0.09749942,2486.2,2485.9,0.04022235]
[1746948070702,0.30829147,2486.9,2485.9,0.04022235]
[1746948070703,4.02139381,2486.7,2485.9,0.04022235]
[1746948070913,0.30829147,2486.9,2485.9,0.04022235]
[1746948070914,0.09027452,2486.6,2485.9,2.07677158]
[1746948071069,4.02068133,2487.2,2486.0,0.1127]
[1746948071391,4.02026212,2487.4,2486.1,0.04021337]
[1746948071592,0.0908216,2487.1,2486.1,0.04021337]
[1746948071775,0.09110148,2487.3,2486.2,0.1127]
[1746948072107,0.7727,2488.0,2486.4,0.1127]
[1746948072403,4.01966738,2487.8,2486.6,0.1127]
[1746948072605,0.08407019,2487.9,2486.7,8.57920051]
[1746948072815,0.2997563,2488.0,2486.9,0.1127]
[1746948072816,0.08379045,2487.7,2486.9,0.1127]
[1746948073102,5.0128,2488.9,2487.1,8.0]
[1746948073304,0.08532847,2488.8,2487.2,0.04018714]
[1746948073605,8.27588364,2488.9,2487.4,0.1127]
[1746948073807,0.8061,2489.3,2487.6,8.1127]
[1746948074016,0.08532847,2488.8,2487.8,0.1127]
[1746948074186,0.08532847,2488.8,2487.9,0.04017834]
[1746948074371,4.01777731,2489.0,2487.9,0.04017834]
[1746948074568,0.08546822,2488.9,2487.9,0.04017834]
[1746948074797,0.08546822,2488.9,2488.0,0.1127]
[1746948075009,0.08546822,2488.9,2488.1,0.0401745]
[1746948075185,5.0611,2490.1,2488.2,0.1127]
[1746948075382,1.04264856,2490.0,2488.4,8.0]
[1746948075585,4.01705345,2489.4,2488.4,8.0]
[1746948075991,0.09169378,2489.3,2488.4,8.0]
[1746948076290,1.04264856,2490.0,2488.4,8.0]
[1746948076503,4.0174333,2489.2,2488.5,0.1127]
[1746948076707,4.01718497,2489.4,2488.5,0.1528711]
[1746948076909,4.01771756,2489.0,2488.5,0.1127]
[1746948077082,0.09199259,2488.9,2488.5,0.1127]
[1746948077286,4.01684149,2489.6,2488.6,0.04017682]
[1746948077600,0.09288804,2489.5,2488.5,0.1127]
[1746948078002,4.10988268,2489.5,2488.5,0.1127]
[1746948078182,4.01699464,2489.5,2488.5,0.1127]
[1746948078384,0.8061,2490.1,2488.5,0.1127]
[1746948078586,0.0927293,2489.4,2488.5,2.79887]
[1746948078805,4.01624341,2489.9,2488.5,2.79887]
[1746948079029,0.0925896,2489.3,2488.6,0.04016953]
[1746948079238,4.01607498,2490.0,2488.6,8.04016953]
[1746948079385,4.01635857,2489.9,2488.7,0.1127]
[1746948079722,0.08694735,2489.9,2489.0,0.1127]
[1746948079888,0.80639796,2490.4,2489.1,4.29216105]
[1746948079889,4.01598155,2490.1,2489.1,4.29216105]
[1746948080083,0.08708698,2490.0,2489.1,4.29216105]
[1746948080286,4.01527747,2490.5,2489.3,0.1127]
[1746948080489,4.01589624,2490.2,2489.3,1.35318611]
[1746948080690,4.01641563,2489.8,2489.4,4.252]
[1746948081003,0.08792743,2489.7,2489.5,0.04016413]
[1746948081323,4.01611323,2490.0,2489.6,18.714]
[1746948081499,0.08820672,2489.9,2489.7,4.251]
[1746948081688,0.08820672,2489.9,2489.7,6.1224]
[1746948082066,4.01425266,2491.2,2489.7,6.1224]
[1746948082067,4.01453708,2491.0,2489.9,0.1127]
[1746948082318,4.01600547,2490.1,2489.9,0.1127]
[1746948082624,4.01638685,2489.8,2489.7,4.251]
[1746948082809,4.01751637,2489.1,2489.0,0.1127]
[1746948083009,4.01600547,2490.1,2489.0,4.251]
[1746948083204,0.08708928,2489.1,2489.0,4.251]
[1746948084419,4.10460565,2489.1,2489.0,4.251]
[1746948085009,0.08708928,2489.1,2489.0,4.251]
[1746948085523,4.01670986,2489.6,2489.0,4.251]
[1746948085728,0.08764809,2489.5,2489.1,0.1127]
[1746948086034,4.01590076,2490.2,2489.2,0.04016668]
[1746948086202,0.7907,2491.2,2489.3,0.1127]
[1746948086403,0.08848597,2490.1,2489.4,0.04015355]
[1746948086601,4.01621059,2490.0,2489.5,4.25]
[1746948086807,0.08773583,2490.0,2489.5,4.25]
[1746948087033,0.08773583,2490.0,2489.6,0.46516014]
[1746948087329,0.0875962,2489.9,2489.6,0.46516014]
[1746948087526,4.01563325,2490.3,2489.6,0.46516014]
[1746948087701,0.08801506,2490.2,2489.6,0.46516014]
[1746948088332,0.08801506,2490.2,2489.7,0.1127]
[1746948088519,4.241,2490.8,2489.7,0.59548601]
[1746948088723,4.01558033,2490.4,2489.7,0.59548601]
[1746948089027,0.08815465,2490.3,2489.8,0.04015386]
[1746948089228,0.08815465,2490.3,2489.9,14.459]
[1746948089416,4.01554905,2490.4,2490.0,1.4459]
[1746948089625,0.08801506,2490.2,2489.9,14.459]
[1746948089939,4.01606425,2490.0,2489.9,14.459]
[1746948090119,0.08773583,2490.0,2489.9,14.459]
[1746948090708,4.01560655,2490.3,2489.9,18.708]
[1746948090906,0.08801506,2490.2,2489.9,18.708]
[1746948091107,4.01549339,2490.4,2489.9,18.708]
[1746948091448,4.01575299,2490.2,2489.9,18.708]
[1746948091605,4.0159082,2490.1,2489.9,18.708]
[1746948091806,0.08787545,2490.1,2489.9,18.708]
[1746948092401,8.0,2490.3,2490.0,0.04015755]
[1746948092605,0.29556367,2491.0,2490.0,1.98751575]
[1746948092802,4.01572675,2490.3,2490.0,0.1127]
[1746948093043,4.01572675,2490.3,2489.9,18.708]
[1746948093044,4.01606425,2490.0,2489.9,14.459]
[1746948093243,4.01606425,2490.0,2489.9,18.708]
[1746948093428,8.0,2490.3,2489.9,18.708]
[1746948093637,8.55,2490.7,2489.9,18.708]
[1746948093959,4.01564808,2490.3,2489.9,18.708]
[1746948094110,4.01591874,2490.1,2489.9,18.708]
[1746948094305,4.10662366,2490.0,2489.9,18.708]
[1746948094640,4.01703221,2489.4,2489.3,4.249]
[1746948094839,0.09055941,2490.0,2489.3,4.6739]
[1746948095041,0.08972146,2489.4,2489.3,4.7866]
[1746948095246,8.0,2490.3,2489.3,4.7866]
[1746948095559,0.09074327,2490.2,2489.3,4.7866]
[1746948095721,4.01594963,2490.1,2489.3,4.7866]
[1746948095923,0.09046404,2490.0,2489.4,0.47866]
[1746948096258,4.01574548,2490.2,2489.4,0.47866]
[1746948096421,0.09026719,2489.9,2489.4,0.47866]
[1746948096622,12.01545995,2490.4,2489.3,0.1127]
[1746948096623,4.01639307,2489.8,2489.3,0.1127]
[1746948096955,4.01658708,2489.7,2489.4,4.249]
[1746948097118,4.01687085,2489.5,2489.4,4.249]
[1746948097458,0.08953689,2489.5,2489.4,4.249]
[1746948097752,4.01647875,2489.8,2489.4,4.249]
[1746948097931,0.08977807,2489.7,2489.4,4.249]
[1746948098129,12.01565299,2490.3,2489.5,0.04016595]
[1746948098339,0.09047622,2490.2,2489.6,0.1127]
[1746948098550,8.0,2490.1,2489.7,0.04015772]
[1746948098753,8.7873,2490.6,2489.6,0.1127]
[1746948098754,0.08975821,2490.0,2489.6,0.1127]
[1746948098921,0.87873,2490.5,2489.6,0.1127]
[1746948099228,4.01592417,2490.1,2489.6,0.1127]
[1746948099433,0.09031662,2490.4,2489.6,0.1127]
[1746948099665,0.08975821,2490.0,2489.6,0.1127]
[1746948099967,0.08961858,2489.9,2489.6,0.1127]
[1746948100128,0.7873,2490.6,2489.6,0.1127]
[1746948100461,4.01545908,2490.4,2489.7,0.04015777]
[1746948100664,4.01545908,2490.4,2489.6,0.1127]
[1746948100962,8.0,2490.2,2489.6,0.1127]
[1746948101130,0.08989783,2490.1,2489.6,0.1127]
[1746948101770,0.55,2490.6,2489.6,0.1127]
[1746948101929,4.01558188,2490.3,2489.7,0.04016163]
[1746948102127,4.1066819,2490.2,2489.6,0.1127]
[1746948102324,0.09083859,2490.2,2489.6,0.1127]
[1746948102565,0.09083859,2490.2,2489.7,0.04015653]
[1746948102761,4.01558213,2490.3,2489.6,0.1127]
[1746948102964,0.09083859,2490.2,2489.7,0.0401558]
[1746948103161,8.0,2490.5,2489.7,0.0401558]
[1746948103360,0.30770286,2490.4,2489.7,0.0401558]
[1746948103763,8.0,2490.3,2489.6,0.1127]
[1746948104069,0.09083859,2490.2,2489.7,0.55]
[1746948104274,0.21658509,2490.4,2490.3,0.1127]
[1746948104447,3.82930731,2491.6,2490.3,18.8157]
[1746948104658,0.38293073,2491.5,2490.4,1.88157]
[1746948104875,8.30779779,2491.3,2490.3,18.8157]
[1746948105176,0.21671589,2491.4,2490.3,18.8157]
[1746948105359,8.0,2491.2,2490.3,18.8157]
[1746948105560,0.21671589,2491.3,2490.4,0.55]
[1746948105767,0.21671589,2491.3,2490.5,0.15283624]
[1746948106077,4.01252193,2492.2,2490.9,0.1127]
[1746948106262,0.7693,2492.5,2490.9,0.1127]
[1746948106463,0.7693,2492.5,2491.0,0.04012643]
[1746948106662,4.01261197,2492.2,2491.1,4.248]
[1746948107000,4.01279241,2492.1,2491.2,0.1127]
[1746948107153,4.01300212,2491.9,2491.2,0.1127]
[1746948107353,8.0,2492.3,2491.2,0.1127]
[1746948107885,3.52452918,2492.4,2491.3,0.04012846]
[1746948108051,3.52452918,2492.4,2491.2,0.1127]
[1746948108254,4.01299956,2492.0,2491.2,0.1127]
[1746948108588,4.01296483,2492.0,2491.2,0.54877]
[1746948108895,8.0,2492.1,2491.3,0.04013088]
[1746948109070,4.01312028,2491.9,2491.2,0.54877]
[1746948109269,0.21603052,2492.0,2491.2,0.1127]
[1746948109608,4.01408876,2491.3,2490.9,4.219]
[1746948109754,0.55,2491.5,2490.9,4.219]
[1746948110088,4.01428543,2491.2,2490.9,4.219]
[1746948110260,4.01438168,2491.1,2490.9,4.219]
[1746948110460,4.01445202,2491.0,2490.9,4.219]
[1746948111091,4.01445202,2491.0,2490.5,4.218]
[1746948111092,0.80287375,2491.0,2490.5,4.218]
[1746948111300,4.01524757,2490.6,2490.5,4.218]
[1746948111796,4.01509676,2490.6,2490.5,4.218]
[1746948111998,0.7562,2491.1,2490.5,4.218]
[1746948112198,8.55,2491.0,2490.5,4.218]
[1746948112403,4.01509676,2490.6,2490.5,4.218]
[1746948112759,4.01509676,2490.6,2490.3,14.455]
[1746948112970,12.764,2491.0,2490.4,4.218]
[1746948112971,4.0148161,2490.8,2490.4,4.218]
[1746948113274,4.214,2491.0,2490.4,4.25814942]
[1746948113478,4.214,2491.0,2490.4,4.218]
[1746948113697,8.22849085,2491.0,2490.4,4.218]
[1746948113999,4.214,2491.0,2490.5,0.04014699]
[1746948114300,4.214,2491.0,2490.6,0.1127]
[1746948114598,4.01416277,2491.2,2490.6,0.1127]
[1746948114810,4.01423499,2491.2,2490.6,0.1127]
[1746948115033,4.0142838,2491.2,2490.6,0.1127]
[1746948115324,4.01430458,2491.1,2490.6,0.1127]
[1746948115482,4.01486659,2490.8,2490.6,0.1127]
[1746948115684,4.01486659,2490.8,2490.4,4.218]
[1746948115979,4.01462933,2490.9,2490.4,4.218]
[1746948116303,8.40142838,2491.2,2490.4,4.218]
[1746948116481,4.34656922,2491.5,2490.4,4.218]
[1746948116675,4.01415111,2491.2,2490.5,0.04014707]
[1746948116875,4.01449006,2491.0,2490.4,4.218]
[1746948117320,0.8185,2492.1,2490.5,0.15284431]
[1746948117616,4.01350017,2491.6,2490.5,2.03542874]
[1746948117782,4.01383265,2491.4,2490.5,2.03542874]
[1746948117982,4.01400675,2491.3,2490.5,2.03542874]
[1746948118304,4.01384269,2491.4,2490.5,1.99528443]
[1746948118611,12.56293155,2492.0,2490.6,0.04014002]
[1746948118612,4.01355011,2491.6,2490.6,0.04014002]
[1746948118813,4.01368231,2491.5,2490.6,0.66548247]
[1746948119840,4.01284109,2492.0,2490.7,0.1127]
[1746948120042,4.01322295,2491.8,2490.8,0.04013571]
[1746948120242,4.207,2492.3,2490.8,0.04013571]
[1746948120538,5.2784691,2492.3,2490.9,0.1127]
[1746948120751,4.01248085,2492.3,2491.1,0.1127]
[1746948120909,0.8185,2492.8,2491.3,0.1127]
[1746948121105,4.30639144,2493.1,2491.5,0.1127]
[1746948121304,4.01144671,2492.9,2491.8,0.1127]
[1746948121508,8.0,2492.8,2491.8,0.1127]
[1746948121708,4.01123245,2493.0,2491.8,0.1127]
[1746948121931,4.01156198,2492.8,2491.9,0.04011738]
[1746948122136,4.41277978,2492.8,2492.0,4.218]
[1746948122333,4.01090967,2493.2,2492.0,4.218]
[1746948122530,4.01090967,2493.2,2492.1,8.15281835]
[1746948123049,0.8185,2493.3,2492.3,0.1127]
[1746948123050,4.01119029,2493.1,2492.3,0.1127]
[1746948123227,4.01135034,2493.0,2492.3,0.1127]
[1746948123448,4.01139235,2492.9,2492.3,0.1127]
[1746948123732,0.80226737,2492.9,2492.3,0.1127]
[1746948124048,4.01170957,2492.8,2492.3,4.3297]
[1746948124551,4.01209483,2492.5,2492.4,4.217]
[1746948125144,8.8185,2492.4,2491.7,4.217]
[1746948125354,4.01235806,2492.3,2491.8,0.04013107]
[1746948125663,4.33653892,2492.8,2491.8,0.04013107]
[1746948125810,4.06803892,2492.9,2491.9,0.1127]
[1746948126013,3.51803892,2492.9,2491.9,4.3297]
[1746948126251,0.55,2492.8,2491.9,4.3297]
[1746948126553,4.56232082,2492.4,2491.9,4.217]
[1746948126841,4.0122095,2492.4,2491.9,4.217]
[1746948127041,4.198,2492.7,2492.0,0.0401266]
[1746948127219,4.01187515,2492.6,2492.0,0.0401266]
[1746948127425,12.01148614,2492.9,2492.1,0.1127]
[1746948127626,4.01159162,2492.8,2492.2,0.04011887]
[1746948127834,8.0,2492.9,2492.2,0.04011887]
[1746948128026,8.0,2493.0,2492.2,0.04011887]
[1746948128238,4.0109601,2493.2,2492.2,0.04011887]
[1746948128429,4.01109345,2493.1,2492.1,0.1127]
[1746948128762,4.01128175,2493.0,2492.1,1.38824127]
[1746948128915,7.71403892,2493.5,2492.1,1.38824127]
[1746948128916,4.01139653,2492.9,2492.1,1.38824127]
[1746948129116,0.55,2493.3,2492.1,1.38824127]
[1746948129412,4.01074649,2493.4,2492.2,0.04011696]
[1746948129617,4.01086261,2493.3,2492.3,4.216]
[1746948129823,1.08671937,2493.6,2492.4,8.1127]
[1746948130625,4.00994205,2493.9,2492.5,0.04010931]
[1746948130958,8.0,2493.8,2492.6,0.1127]
[1746948131118,12.81067128,2493.8,2492.6,0.1127]
[1746948131324,0.80072662,2493.8,2492.6,0.1127]
[1746948131522,4.01019768,2493.7,2492.7,0.04010565]
[1746948131731,4.01036531,2493.6,2492.6,0.1127]
[1746948131935,4.01060742,2493.4,2492.6,0.1127]
[1746948132130,4.01052954,2493.5,2492.6,0.1127]
[1746948132358,4.01025041,2493.7,2492.7,0.04010825]
[1746948132669,8.0,2493.9,2492.7,0.04010825]
[1746948132875,0.0072662,2494.0,2493.0,0.1127]
[1746948133024,0.0072662,2494.0,2493.1,18.69610303]
[1746948133219,0.0072662,2494.0,2493.3,0.1127]
[1746948133450,0.0072662,2494.0,2493.4,0.04009763]
[1746948133624,0.0072662,2494.0,2493.3,0.1127]
[1746948133835,0.0072662,2494.0,2493.5,0.55]
[1746948134051,0.0072662,2494.0,2493.6,4.215]
[1746948134252,0.0072662,2494.0,2493.5,4.3277]
[1746948134435,4.00984212,2493.9,2493.5,4.3277]
[1746948134638,0.0072662,2494.0,2493.1,14.441]
[1746948134639,4.01008706,2493.8,2493.6,4.215]
[1746948134839,0.0072662,2494.0,2493.1,14.441]
[1746948135043,0.0072662,2494.0,2493.7,4.215]
[1746948135248,0.0072662,2494.0,2493.8,0.15279559]
[1746948135467,0.0072662,2494.0,2493.8,0.1127]
[1746948136266,0.0072662,2494.0,2493.9,0.04008998]
[1746948136446,0.0072662,2494.0,2493.8,0.1127]
[1746948136645,0.0072662,2494.0,2493.8,0.54547]
[1746948136830,0.0072662,2494.0,2493.9,0.1127]
[1746948137436,4.01688929,2494.0,2493.9,4.185]
[1746948137649,0.0072662,2494.0,2493.9,4.185]
[1746948138087,0.0072662,2494.0,2493.5,0.1127]
[1746948138244,0.0072662,2494.0,2493.6,4.185]
[1746948138571,0.0072662,2494.0,2493.8,0.1127]
[1746948139434,0.0072662,2494.0,2493.9,0.55]
[1746948139639,0.0072662,2494.0,2493.9,0.1127]
[1746948140266,0.0072662,2494.0,2493.9,12.2977]
[1746948141139,0.0072662,2494.0,2493.9,16.4777]
[1746948141341,0.0072662,2494.0,2493.9,18.210297]
[1746948141543,0.0072662,2494.0,2493.9,4.2967]
[1746948142077,0.0072662,2494.0,2493.9,0.04008687]
[1746948142283,0.0072662,2494.0,2493.4,0.1127]
[1746948142483,0.0072662,2494.0,2493.5,4.184]
[1746948142843,0.0072662,2494.0,2493.4,0.1127]
[1746948143143,4.01695437,2494.0,2493.4,0.1127]
[1746948143347,4.00981607,2493.9,2493.5,4.184]
[1746948143970,4.01058795,2493.4,2493.3,4.184]
[1746948144446,4.01058795,2493.4,2492.6,0.1127]
[1746948144643,0.55,2493.2,2491.9,14.431]
[1746948144865,4.01111423,2493.1,2492.1,8.0]
[1746948145201,4.01141353,2492.9,2492.1,8.0]
[1746948145404,4.01167676,2492.8,2492.2,1.2184]
[1746948145608,0.55,2492.9,2492.0,4.184]
[1746948145768,4.01210818,2492.5,2492.1,4.184]
[1746948145967,4.0122745,2492.4,2492.1,4.184]
[1746948146223,8.0,2492.1,2490.8,4.184]
[1746948146419,4.9714,2492.0,2490.8,4.184]
[1746948146565,4.8092551,2492.0,2490.9,9.90163954]
[1746948146773,0.7964,2492.0,2491.0,0.1127]
[1746948147069,0.7964,2492.0,2491.1,0.04013327]
[1746948147284,4.176,2492.1,2491.0,0.1127]
[1746948147691,8.18870865,2492.1,2491.0,0.1127]
[1746948147897,12.0121791,2492.5,2491.0,8.72852]
[1746948148099,8.18601435,2492.6,2491.2,8.0]
[1746948148417,4.174,2492.6,2491.0,8.72852]
[1746948148569,0.55,2492.5,2491.0,0.72852]
[1746948148765,4.01331688,2491.8,2491.1,4.79480589]
[1746948148989,0.7964,2492.0,2491.1,4.79480589]
[1746948149212,0.7964,2492.5,2491.2,8.0401336]
[1746948149419,0.7964,2493.1,2491.4,8.0]
[1746948149595,4.80760446,2493.1,2491.6,0.1127]
[1746948149903,4.9694,2493.1,2491.7,0.04011734]
[1746948150119,4.9694,2493.1,2491.8,8.1127]
[1746948150321,4.9694,2493.1,2492.0,8.0]
[1746948150501,0.7964,2493.6,2492.2,8.0]
[1746948150800,4.80668507,2493.6,2492.5,0.1127]
[1746948151177,4.173,2493.7,2492.5,0.1127]
[1746948151409,4.9684,2493.9,2492.6,0.04010634]
[1746948151603,4.9684,2493.9,2492.8,8.0]
[1746948152027,4.00994466,2493.8,2492.7,4.185]
[1746948152219,4.01082815,2493.3,2492.7,4.185]
[1746948152708,4.01070257,2493.4,2492.7,4.185]
[1746948152895,4.171,2493.4,2492.8,4.22511441]
[1746948153210,4.01119139,2493.1,2492.8,4.185]
[1746948153550,4.80393929,2493.2,2492.8,4.185]
[1746948154010,0.793,2493.2,2492.8,4.185]
[1746948154592,4.171,2493.4,2492.8,4.185]
[1746948154806,8.18164242,2493.4,2492.5,0.1528159]
[1746948155009,4.171,2493.4,2492.6,4.185]
[1746948155191,0.55,2493.3,2492.6,4.185]
[1746948155371,4.01129124,2493.0,2492.6,4.185]
[1746948155574,3.51803892,2493.1,2492.5,0.04011604]
[1746948155807,3.51803892,2493.1,2492.6,4.185]
[1746948156107,0.55,2493.0,2492.6,4.185]
[1746948156610,0.793,2493.5,2492.7,4.22511953]
[1746948156799,4.168,2493.6,2492.8,0.1127]
[1746948157000,8.17829764,2493.6,2492.8,0.1127]
[1746948157410,4.01045333,2493.5,2492.8,0.1127]
[1746948157717,4.010634,2493.4,2492.9,4.185]
[1746948157875,1.21890873,2493.4,2492.9,4.185]
[1746948158187,0.55,2493.3,2493.0,4.185]
[1746948158386,4.56075778,2493.3,2492.9,4.185]
[1746948158586,4.01044327,2493.5,2492.9,4.185]
[1746948159021,4.166,2493.6,2492.9,4.185]
[1746948159186,4.01059997,2493.4,2492.9,4.185]
[1746948159387,0.55,2493.3,2492.9,4.185]
[1746948159590,0.55,2493.0,2492.1,14.437]
[1746948159779,4.83394809,2492.4,2492.1,14.437]
[1746948159982,4.165,2492.4,2492.1,14.437]
[1746948160179,0.8217,2492.8,2492.1,14.437]
[1746948160379,4.714,2493.0,2492.2,1.4437]
[1746948160580,4.714,2493.0,2492.3,4.185]
[1746948160992,4.164,2493.0,2492.3,4.185]
[1746948161190,4.164,2493.0,2492.4,0.04012133]
[1746948161513,4.01082817,2493.3,2492.4,0.04012133]
[1746948161828,4.01143627,2492.9,2492.3,4.2977]
[1746948161982,4.01107715,2493.1,2492.4,4.65488578]
[1746948162322,4.01047074,2493.5,2492.4,4.65488578]
[1746948162485,4.162,2493.4,2492.4,4.65488578]
[1746948162816,8.17261962,2493.4,2492.4,4.65488578]
[1746948163113,8.17262046,2493.4,2492.4,4.65488578]
[1746948163316,4.01075188,2493.3,2492.5,0.47675858]
[1746948163626,4.01060941,2493.4,2492.6,0.04011239]
[1746948163807,4.01060941,2493.4,2492.6,0.0401124]
[1746948164008,8.17247037,2493.5,2492.6,0.0401124]
[1746948164214,8.17254633,2493.5,2492.6,0.0401124]
[1746948164388,8.17244528,2493.5,2492.6,0.5102995]
[1746948164585,8.17144528,2493.5,2492.6,0.5102995]
[1746948164793,4.161,2493.5,2492.6,0.5102995]
[1746948165028,8.17142839,2493.5,2492.6,0.51029645]
[1746948165226,4.9817,2493.6,2492.6,0.51029646]
[1746948165394,4.9817,2493.6,2492.7,0.85102965]
[1746948165594,0.8217,2493.6,2492.8,0.04010626]
[1746948165795,4.01020422,2493.7,2492.9,0.1127]
[1746948166007,4.01020422,2493.7,2493.0,0.04010493]
[1746948166916,4.01027029,2493.6,2493.0,0.04010493]
[1746948167118,4.01015053,2493.7,2493.0,0.04010493]
[1746948167996,4.01027093,2493.6,2493.0,0.04010493]
[1746948168196,4.01087566,2493.3,2492.6,0.4701871]
[1746948168506,0.55,2493.5,2492.6,0.4701871]
[1746948168507,4.01058795,2493.4,2492.6,0.4701871]
[1746948168712,7.52819376,2493.7,2492.7,0.04011234]
[1746948168911,4.01043948,2493.5,2492.7,0.04011234]
[1746948169114,8.16634549,2493.6,2492.7,0.90241228]
[1746948169312,4.01083108,2493.3,2492.7,0.86229994]
[1746948169705,4.01059026,2493.4,2492.7,0.90240959]
[1746948169909,4.01091494,2493.2,2492.7,0.86229994]
[1746948170103,4.156,2493.6,2492.7,0.90241295]
[1746948170307,4.01133096,2493.0,2492.5,0.1127]
[1746948170808,4.01133096,2493.0,2492.6,4.157]
[1746948171018,0.55,2493.2,2492.6,4.157]
[1746948171314,8.7635,2493.3,2492.6,4.157]
[1746948171622,4.01107055,2493.1,2492.6,4.157]
[1746948171938,0.55,2493.2,2492.6,4.157]
[1746948172248,4.01116749,2493.1,2492.2,0.04011885]
[1746948172548,12.77426554,2493.3,2492.7,4.157]
[1746948172549,12.7742937,2493.3,2492.7,4.157]
[1746948172726,8.7635,2493.3,2492.7,4.157]
[1746948173035,4.01068263,2493.4,2492.8,0.1127]
[1746948173235,8.71238326,2493.6,2492.8,0.15281378]
[1746948173439,4.01104073,2493.2,2492.8,0.1127]
[1746948174040,4.01104073,2493.2,2492.7,4.157]
[1746948174041,0.55,2493.3,2492.7,4.157]
[1746948174217,0.4701,2493.2,2492.7,4.157]
[1746948174413,0.55,2493.1,2492.8,4.158]
[1746948174629,4.56113249,2493.1,2492.8,4.158]
[1746948174946,0.21782448,2493.0,2492.8,4.158]
[1746948175626,4.01034901,2493.6,2492.8,4.158]
[1746948175837,4.01034901,2493.6,2492.8,4.5738]
[1746948176346,0.2179045,2493.5,2492.8,4.5738]
[1746948176511,0.2179045,2493.5,2492.9,0.04011002]
[1746948176712,0.2179045,2493.5,2492.8,4.5738]
[1746948177224,4.01028448,2493.6,2492.8,4.5738]
[1746948177428,4.01042711,2493.5,2492.9,0.49748899]
[1746948177770,4.01028653,2493.6,2493.0,0.1127]
[1746948177920,8.0,2493.7,2493.0,0.1127]
[1746948178121,12.01014282,2493.7,2493.0,0.1127]
[1746948178418,12.01021914,2493.7,2493.0,0.1127]
[1746948178614,8.0,2493.7,2493.0,0.585508]
[1746948178932,4.01058807,2493.4,2493.0,0.1127]
[1746948179150,8.0,2493.7,2493.0,0.1127]
[1746948179313,12.010261,2493.7,2493.0,0.1127]
[1746948179511,4.01067638,2493.4,2493.0,0.1127]
[1746948179716,4.01117432,2493.1,2492.8,4.158]
[1746948179936,4.01117518,2493.1,2492.6,0.1127]
[1746948180219,0.55,2493.2,2492.7,4.157]
[1746948180444,0.21826245,2493.3,2492.7,4.157]
[1746948180653,0.21826245,2493.1,2492.7,4.157]
[1746948181033,0.21826245,2493.1,2492.8,0.04011235]
[1746948181221,4.22854543,2493.6,2492.7,4.157]
[1746948181421,0.21826245,2493.6,2492.7,4.157]